[Event "LJ Slovak Open 2022"]
[Site "Liptovsky Jan"]
[Date "2022.06.23"]
[Round "1.53"]
[White "Stricova Julia Nela"]
[Black "Petrik, Matus"]
[Result "0-1"]
[ECO "C50"]
[WhiteElo "1149"]
[BlackElo "1684"]
[Annotator "NA RC"]
[PlyCount "94"]
[EventDate "2022.06.23"]
[EventType "swiss"]
[EventCountry "SVK"]
[SourceTitle "playchess.com"]
[Source "ChessBase"]
[SourceQuality "1"]
[TimeControl "3600+30"]

1. e4 {[%emt 0:00:22]} e5 {[%emt 0:00:30]} 2. Nf3 {[%emt 0:00:30]} Nf6 {[%emt 0:00:20]} 3. Nc3 {[%emt 0:00:26]} Nc6 {[%emt 0:01:14]} 4. Bc4 {[%emt 0:00:14]} Bc5 {[%emt 0:04:13]} 5. O-O {[%emt 0:00:14]} d6 {[%emt 0:00:13]} 6. h3 {[%emt 0:00:16]} a6 {[%emt 0:00:28]} 7. d3 {[%emt 0:01:24]} h6 {[%emt 0:00:31]} 8. Be3 {[%emt 0:00:30]} Bxe3 {[%emt 0:01:34]} 9. fxe3 {[%emt 0:00:12]} Na5 {[%emt 0:00:24]} 10. Bb3 {[%emt 0:01:04]} Nxb3 {[%emt 0:00:34]} 11. axb3 {[%emt 0:00:08]} O-O {[%emt 0:00:21]} 12. Nd5 {[%emt 0:00:19]} Be6 {[%emt 0:02:43]} 13. Nxf6+ {[%emt 0:00:21]} Qxf6 {[%emt 0:00:06]} 14. Nd4 {[%emt 0:00:44]} Qg5 {[%emt 0:00:13]} 15. Nxe6 {[%emt 0:00:34]} Qxe3+ {[%emt 0:00:10]} 16. Rf2 {[%emt 0:00:58]} fxe6 {[%emt 0:00:07]} 17. Qe2 {[%emt 0:01:12]} Qxf2+ {[%emt 0:04:56]} 18. Qxf2 {[%emt 0:00:15]} Rxf2 {[%emt 0:00:09]} 19. Kxf2 {[%emt 0:00:09]} Rf8+ {[%emt 0:00:02]} 20. Ke2 {[%emt 0:01:11]} Rf6 {[%emt 0:00:42]} 21. Rf1 {[%emt 0:00:24]} Kf7 {[%emt 0:02:00]} 22. Rxf6+ {[%emt 0:00:18]} gxf6 {[%emt 0:00:40]} 23. Kf3 {[%emt 0:00:15]} f5 {[%emt 0:01:05]} 24. g4 {[%emt 0:00:39]} Kf6 {[%emt 0:02:10]} 25. gxf5 {[%emt 0:00:29]} exf5 {[%emt 0:00:07]} 26. exf5 {[%emt 0:00:34]} Kxf5 {[%emt 0:00:06]} 27. h4 {[%emt 0:01:43]} h5 {[%emt 0:00:23]} 28. c4 {[%emt 0:00:36]} a5 {[%emt 0:00:23]} 29. Kg3 {[%emt 0:00:52]} c6 {[%emt 0:00:22]} 30. Kf3 {[%emt 0:00:23]} d5 {[%emt 0:00:41]} 31. c5 {[%emt 0:02:22]} d4 {[%emt 0:00:44]} 32. Kg3 {[%emt 0:00:25]} e4 {[%emt 0:00:10]} 33. dxe4+ {[%emt 0:00:59]} Kxe4 {[%emt 0:00:07]} 34. Kf2 {[%emt 0:00:18]} Kd3 {[%emt 0:00:14]} 35. Ke1 {[%emt 0:00:42]} Kc2 {[%emt 0:00:15]} 36. Ke2 {[%emt 0:00:38]} d3+ {[%emt 0:00:07]} 37. Ke1 {[%emt 0:00:33]} d2+ {[%emt 0:00:07]} 38. Ke2 {[%emt 0:00:22]} d1=Q+ {[%emt 0:00:09]} 39. Ke3 {[%emt 0:00:25]} Qg4 {[%emt 0:00:28]} 40. b4 {[%emt 0:00:25]} a4 {[%emt 0:01:00]} 41. b5 {[%emt 0:00:16]} Kxb2 {[%emt 0:00:26]} 42. bxc6 {[%emt 0:00:16]} bxc6 {[%emt 0:00:22]} 43. Kd3 {[%emt 0:00:08]} a3 {[%emt 0:00:11]} 44. Ke3 {[%emt 0:00:10]} a2 {[%emt 0:00:07]} 45. Kd3 {[%emt 0:00:08]} a1=Q {[%emt 0:00:41]} 46. Ke3 {[%emt 0:00:30]} Qa3+ {[%emt 0:00:30]} 47. Kd2 {[%emt 0:00:09]} Qc3# {[%emt 0:00:10]} 0-1

[Event "LJ Slovak Open 2022"]
[Site "Liptovsky Jan"]
[Date "2022.06.23"]
[Round "1.54"]
[White "Babjak, Samuel"]
[Black "Prochazka Michal"]
[Result "1-0"]
[ECO "D13"]
[WhiteElo "1577"]
[BlackElo "1110"]
[Annotator "NA RC"]
[PlyCount "33"]
[EventDate "2022.06.23"]
[EventType "swiss"]
[EventCountry "SVK"]
[SourceTitle "playchess.com"]
[Source "ChessBase"]
[SourceQuality "1"]
[TimeControl "3600+30"]

1. d4 {[%emt 0:00:07]} d5 {[%emt 0:00:10]} 2. c4 {[%emt 0:00:05]} c6 {[%emt 0:00:27]} 3. Nc3 {[%emt 0:00:05]} Nf6 {[%emt 0:01:21]} 4. Nf3 {[%emt 0:00:05]} Bf5 {[%emt 0:00:59]} 5. cxd5 {[%emt 0:00:46]} cxd5 {[%emt 0:00:24]} 6. Qb3 {[%emt 0:00:21]} Qb6 {[%emt 0:03:40]} 7. Nxd5 {[%emt 0:00:43]} Qxb3 {[%emt 0:01:44]} 8. Nxf6+ {[%emt 0:00:05]} gxf6 {[%emt 0:01:57]} 9. axb3 {[%emt 0:00:06]} Nc6 {[%emt 0:00:47]} 10. Bd2 {[%emt 0:03:26]} e5 {[%emt 0:02:59]} 11. Bc3 {[%emt 0:02:29]} Bd6 {[%emt 0:03:42]} 12. e3 {[%emt 0:02:06]} a6 {[%emt 0:03:53]} 13. Bc4 {[%emt 0:01:28]} Rg8 {[%emt 0:04:53]} 14. Rg1 {[%emt 0:04:05]} Be4 {[%emt 0:02:14]} 15. dxe5 {[%emt 0:01:11]} fxe5 {[%emt 0:01:51]} 16. Ke2 {[%emt 0:00:34]} f6 {[%emt 0:03:14]} 17. Bxg8 {[%emt 0:00:06]} 1-0

[Event "LJ Slovak Open 2022"]
[Site "Liptovsky Jan"]
[Date "2022.06.23"]
[Round "1.55"]
[White "Stricova Viktoria Lea"]
[Black "Brida, Lukas"]
[Result "0-1"]
[ECO "C48"]
[WhiteElo "1025"]
[BlackElo "1673"]
[Annotator "NA RC"]
[PlyCount "44"]
[EventDate "2022.06.23"]
[EventType "swiss"]
[EventCountry "SVK"]
[SourceTitle "playchess.com"]
[Source "ChessBase"]
[SourceQuality "1"]
[TimeControl "3600+30"]

1. e4 {[%emt 0:00:39]} e5 {[%emt 0:00:14]} 2. Nf3 {[%emt 0:00:12]} Nc6 {[%emt 0:01:46]} 3. Nc3 {[%emt 0:00:17]} Nf6 {[%emt 0:00:10]} 4. Bb5 {[%emt 0:00:27]} Nd4 {[%emt 0:01:42]} 5. Nxd4 {[%emt 0:00:43]} c6 {[%emt 0:00:52]} 6. Bd3 {[%emt 0:01:04]} exd4 {[%emt 0:00:11]} 7. Ne2 {[%emt 0:00:42]} d5 {[%emt 0:10:04]} 8. f3 {[%emt 0:02:01]} dxe4 {[%emt 0:00:14]} 9. fxe4 {[%emt 0:00:20]} Bd6 {[%emt 0:03:35]} 10. O-O {[%emt 0:01:14]} Bxh2+ {[%emt 0:06:02]} 11. Kxh2 {[%emt 0:00:43]} Ng4+ {[%emt 0:00:05]} 12. Kg1 {[%emt 0:01:46]} Qh4 {[%emt 0:00:13]} 13. Rf3 {[%emt 0:07:42]} Qh2+ {[%emt 0:01:49]} 14. Kf1 {[%emt 0:01:36]} Qh1+ {[%emt 0:02:37]} 15. Ng1 {[%emt 0:01:39]} Nh2+ {[%emt 0:01:11]} 16. Ke2 {[%emt 0:01:47]} Qxg2+ {[%emt 0:01:40]} 17. Ke1 {[%emt 0:00:42]} Qxg1+ {[%emt 0:00:39]} 18. Ke2 {[%emt 0:03:34]} Qg2+ {[%emt 0:01:29]} 19. Rf2 {[%emt 0:03:01]} Bg4+ {[%emt 0:02:07]} 20. Ke1 {[%emt 0:02:23]} Qg1+ {[%emt 0:00:34]} 21. Rf1 {[%emt 0:00:45]} Nxf1 {[%emt 0:00:21]} 22. Bxf1 {[%emt 0:00:40]} Qg3# {[%emt 0:00:34]} 0-1

[Event "LJ Slovak Open 2022"]
[Site "Liptovsky Jan"]
[Date "2022.06.23"]
[Round "1.56"]
[White "Krestian, Darius"]
[Black "Lesko Ondrej"]
[Result "1-0"]
[ECO "D07"]
[WhiteElo "1659"]
[BlackElo "1000"]
[Annotator "NA RC"]
[PlyCount "65"]
[EventDate "2022.06.23"]
[EventType "swiss"]
[EventCountry "SVK"]
[SourceTitle "playchess.com"]
[Source "ChessBase"]
[SourceQuality "1"]
[TimeControl "3600+30"]

1. d4 {[%emt 0:00:06]} d5 {[%emt 0:00:30]} 2. Nf3 {[%emt 0:00:03]} Nf6 {[%emt 0:00:40]} 3. c4 {[%emt 0:00:06]} dxc4 {[%emt 0:00:53]} 4. Nc3 {[%emt 0:00:02]} Nc6 {[%emt 0:00:37]} 5. d5 {[%emt 0:00:05]} Nb4 {[%emt 0:00:53]} 6. Qa4+ {[%emt 0:00:19]} Bd7 {[%emt 0:00:49]} 7. Qxb4 {[%emt 0:00:30]} a5 {[%emt 0:00:49]} 8. Qxc4 {[%emt 0:00:00]} Ra6 {[%emt 0:00:58]} 9. Bf4 {[%emt 0:00:23]} Rb6 {[%emt 0:01:04]} 10. Rb1 {[%emt 0:03:29]} Bf5 {[%emt 0:01:25]} 11. e4 {[%emt 0:00:47]} Bg6 {[%emt 0:00:47]} 12. Bxc7 {[%emt 0:01:25]} Qd7 {[%emt 0:01:14]} 13. Bxb6 {[%emt 0:00:30]} e5 {[%emt 0:01:12]} 14. Nxe5 {[%emt 0:00:08]} Bd6 {[%emt 0:00:56]} 15. Nxd7 {[%emt 0:00:04]} Nxd7 {[%emt 0:01:11]} 16. Bxa5 {[%emt 0:00:30]} O-O {[%emt 0:01:27]} 17. Bb4 {[%emt 0:00:00]} Bxb4 {[%emt 0:00:44]} 18. Qxb4 {[%emt 0:00:00]} Bh5 {[%emt 0:01:28]} 19. Be2 {[%emt 0:00:54]} Bxe2 {[%emt 0:00:30]} 20. Kxe2 {[%emt 0:00:04]} h6 {[%emt 0:01:46]} 21. Qxb7 {[%emt 0:00:00]} Rd8 {[%emt 0:00:30]} 22. a4 {[%emt 0:00:43]} Ne5 {[%emt 0:00:56]} 23. d6 {[%emt 0:00:27]} Re8 {[%emt 0:00:46]} 24. d7 {[%emt 0:00:15]} Rd8 {[%emt 0:00:56]} 25. Qc8 {[%emt 0:00:30]} Nxd7 {[%emt 0:00:31]} 26. Qxd8+ {[%emt 0:00:00]} Nf8 {[%emt 0:00:23]} 27. Qxf8+ {[%emt 0:00:00]} Kxf8 {[%emt 0:01:18]} 28. a5 {[%emt 0:00:00]} Kg8 {[%emt 0:00:30]} 29. a6 {[%emt 0:00:00]} Kh7 {[%emt 0:00:30]} 30. a7 {[%emt 0:00:20]} f6 {[%emt 0:00:30]} 31. a8=Q {[%emt 0:00:00]} Kg6 {[%emt 0:01:13]} 32. h4 {[%emt 0:00:00]} Kf7 {[%emt 0:00:30]} 33. Rbd1 {[%emt 0:00:05]} 1-0

[Event "LJ Slovak Open 2022"]
[Site "Liptovsky Jan"]
[Date "2022.06.23"]
[Round "1.57"]
[White "Moravcik Alex"]
[Black "Kulich, Daniel"]
[Result "0-1"]
[ECO "A08"]
[WhiteElo "1000"]
[BlackElo "1648"]
[Annotator "NA RC"]
[PlyCount "110"]
[EventDate "2022.06.23"]
[EventType "swiss"]
[EventCountry "SVK"]
[SourceTitle "playchess.com"]
[Source "ChessBase"]
[SourceQuality "1"]
[TimeControl "3600+30"]

1. g3 {[%emt 0:00:05]} d5 {[%emt 0:00:31]} 2. Bg2 {[%emt 0:00:19]} Nf6 {[%emt 0:00:32]} 3. d3 {[%emt 0:00:21]} c5 {[%emt 0:00:31]} 4. Nf3 {[%emt 0:00:59]} Nc6 {[%emt 0:00:10]} 5. O-O {[%emt 0:01:20]} e5 {[%emt 0:00:23]} 6. Bg5 {[%emt 0:01:06]} Be7 {[%emt 0:01:17]} 7. Bxf6 {[%emt 0:00:45]} Bxf6 {[%emt 0:00:13]} 8. c4 {[%emt 0:00:29]} e4 {[%emt 0:01:57]} 9. dxe4 {[%emt 0:00:32]} Bxb2 {[%emt 0:00:17]} 10. exd5 {[%emt 0:01:03]} Ne7 {[%emt 0:02:01]} 11. Na3 {[%emt 0:01:10]} Bxa1 {[%emt 0:00:15]} 12. Qxa1 {[%emt 0:00:15]} O-O {[%emt 0:00:19]} 13. Nh4 {[%emt 0:00:40]} Re8 {[%emt 0:05:20]} 14. Re1 {[%emt 0:02:41]} Nf5 {[%emt 0:12:14]} 15. Nf3 {[%emt 0:00:53]} Nd6 {[%emt 0:00:41]} 16. Qb1 {[%emt 0:01:06]} Bf5 {[%emt 0:00:49]} 17. Qb2 {[%emt 0:01:28]} Qd7 {[%emt 0:02:14]} 18. Nh4 {[%emt 0:01:33]} Bd3 {[%emt 0:03:22]} 19. Bf3 {[%emt 0:01:55]} Nxc4 {[%emt 0:02:41]} 20. Nxc4 {[%emt 0:00:27]} Bxc4 {[%emt 0:00:06]} 21. g4 {[%emt 0:02:50]} g6 {[%emt 0:04:28]} 22. Rd1 {[%emt 0:02:37]} Rad8 {[%emt 0:03:26]} 23. Qf6 {[%emt 0:00:53]} Qd6 {[%emt 0:00:48]} 24. Qa1 {[%emt 0:00:40]} Bxe2 {[%emt 0:01:00]} 25. Bxe2 {[%emt 0:00:55]} Rxe2 {[%emt 0:00:09]} 26. Nf3 {[%emt 0:01:23]} Qf4 {[%emt 0:01:54]} 27. Qc3 {[%emt 0:01:26]} Qxg4+ {[%emt 0:01:05]} 28. Kf1 {[%emt 0:00:28]} Rde8 {[%emt 0:00:54]} 29. Qf6 {[%emt 0:00:45]} Qc4 {[%emt 0:02:05]} 30. Kg2 {[%emt 0:00:42]} Qc2 {[%emt 0:01:39]} 31. Ng5 {[%emt 0:00:35]} Qf5 {[%emt 0:02:17]} 32. Qxf5 {[%emt 0:01:29]} gxf5 {[%emt 0:00:50]} 33. d6 {[%emt 0:00:28]} Rd8 {[%emt 0:03:41]} 34. d7 {[%emt 0:00:32]} Re7 {[%emt 0:00:17]} 35. Rd5 {[%emt 0:01:35]} b6 {[%emt 0:00:18]} 36. Rxf5 {[%emt 0:00:26]} Rdxd7 {[%emt 0:00:12]} 37. Rf4 {[%emt 0:00:46]} Rd4 {[%emt 0:00:37]} 38. Rf6 {[%emt 0:00:28]} Rg4+ {[%emt 0:00:20]} 39. Kf1 {[%emt 0:00:20]} Rxg5 {[%emt 0:00:07]} 40. Rc6 {[%emt 0:00:21]} Rg6 {[%emt 0:00:10]} 41. Rc8+ {[%emt 0:00:27]} Kg7 {[%emt 0:00:05]} 42. Rd8 {[%emt 0:00:19]} Rc6 {[%emt 0:00:15]} 43. Rd1 {[%emt 0:00:18]} c4 {[%emt 0:00:05]} 44. Rc1 {[%emt 0:00:23]} c3 {[%emt 0:00:05]} 45. h4 {[%emt 0:00:15]} c2 {[%emt 0:00:04]} 46. h5 {[%emt 0:00:14]} Re5 {[%emt 0:00:07]} 47. h6+ {[%emt 0:00:24]} Kxh6 {[%emt 0:00:06]} 48. a4 {[%emt 0:00:14]} Re4 {[%emt 0:00:16]} 49. a5 {[%emt 0:00:29]} Rb4 {[%emt 0:00:06]} 50. axb6 {[%emt 0:00:12]} axb6 {[%emt 0:00:04]} 51. Ke2 {[%emt 0:00:12]} Rb1 {[%emt 0:00:07]} 52. Rxb1 {[%emt 0:00:12]} cxb1=Q {[%emt 0:00:11]} 53. f4 {[%emt 0:00:09]} Qb3 {[%emt 0:00:07]} 54. Kd2 {[%emt 0:04:27]} Rc2+ {[%emt 0:00:07]} 55. Kd1 {[%emt 0:00:34]} Qb1# {[%emt 0:00:11]} 0-1

[Event "LJ Slovak Open 2022"]
[Site "Liptovsky Jan"]
[Date "2022.06.24"]
[Round "2.1"]
[White "Manik, Mikulas"]
[Black "Smusz, Kamil"]
[Result "1-0"]
[ECO "C43"]
[WhiteElo "2368"]
[BlackElo "1881"]
[Annotator "RC"]
[PlyCount "51"]
[EventDate "2022.06.23"]
[EventType "swiss"]
[EventCountry "SVK"]
[SourceTitle "playchess.com"]
[Source "ChessBase"]
[SourceQuality "1"]
[TimeControl "3600+30"]

1. e4 {[%emt 0:01:03]} e5 {[%emt 0:00:01]} 2. Nf3 {[%emt 0:00:09]} Nf6 {[%emt 0:00:05]} 3. d4 {[%emt 0:00:18]} Nxe4 {[%emt 0:00:09]} 4. Bd3 {[%emt 0:00:23]} d5 {[%emt 0:00:02]} 5. Nxe5 {[%emt 0:00:08]} Nd7 {[%emt 0:00:11]} 6. Nc3 {[%emt 0:00:10]} Nxc3 {[%emt 0:21:56]} 7. bxc3 {[%emt 0:00:03]} Nxe5 {[%emt 0:02:40]} 8. dxe5 {[%emt 0:00:08]} Bc5 {[%emt 0:02:16]} 9. O-O {[%emt 0:13:07]} O-O {[%emt 0:02:17]} 10. Qh5 {[%emt 0:00:39]} g6 {[%emt 0:00:13]} 11. Qh6 {[%emt 0:00:17]} Re8 {[%emt 0:02:12]} 12. Bg5 {[%emt 0:00:41]} Qd7 {[%emt 0:15:46]} 13. Bf6 {[%emt 0:02:17]} Bf8 {[%emt 0:04:05]} 14. Qd2 {[%emt 0:02:03]} c5 {[%emt 0:05:03]} 15. f4 {[%emt 0:08:00]} Bh6 {[%emt 0:06:53]} 16. Rad1 {[%emt 0:00:16]} Qc6 {[%emt 0:01:17]} 17. Be2 {[%emt 0:10:52]} Be6 {[%emt 0:02:27]} 18. Bf3 {[%emt 0:00:51]} Bg7 {[%emt 0:00:51]} 19. Bxg7 {[%emt 0:01:27]} Kxg7 {[%emt 0:00:01]} 20. c4 {[%emt 0:00:24]} Rad8 {[%emt 0:01:20]} 21. cxd5 {[%emt 0:00:26]} Qa4 {[%emt 0:00:30]} 22. Qe3 {[%emt 0:06:38]} Bf5 {[%emt 0:00:33]} 23. c3 {[%emt 0:00:22]} c4 {[%emt 0:00:38]} 24. Qd4 {[%emt 0:06:04]} Bc2 {[%emt 0:00:29]} 25. Rd2 {[%emt 0:00:09]} Bd3 {[%emt 0:00:03]} 26. Rxd3 {[%emt 0:00:04]} 1-0

[Event "LJ Slovak Open 2022"]
[Site "Liptovsky Jan"]
[Date "2022.06.24"]
[Round "2.2"]
[White "Goga, Frantisek"]
[Black "Jablonicky, Martin"]
[Result "0-1"]
[ECO "B22"]
[WhiteElo "1900"]
[BlackElo "2377"]
[Annotator "RC"]
[PlyCount "90"]
[EventDate "2022.06.23"]
[EventType "swiss"]
[EventCountry "SVK"]
[SourceTitle "playchess.com"]
[Source "ChessBase"]
[SourceQuality "1"]
[TimeControl "3600+30"]

1. e4 {[%emt 0:01:27]} c5 {[%emt 0:00:57]} 2. d4 {[%emt 0:00:19]} cxd4 {[%emt 0:00:08]} 3. c3 {[%emt 0:00:12]} Nf6 {[%emt 0:01:11]} 4. e5 {[%emt 0:00:27]} Nd5 {[%emt 0:00:06]} 5. Nf3 {[%emt 0:00:35]} e6 {[%emt 0:00:31]} 6. cxd4 {[%emt 0:02:36]} Nc6 {[%emt 0:00:30]} 7. Bc4 {[%emt 0:00:27]} d6 {[%emt 0:00:27]} 8. O-O {[%emt 0:00:46]} Nb6 {[%emt 0:01:44]} 9. Bb3 {[%emt 0:00:38]} Be7 {[%emt 0:01:22]} 10. Nc3 {[%emt 0:03:45]} O-O {[%emt 0:01:41]} 11. Bf4 {[%emt 0:01:52]} dxe5 {[%emt 0:04:27]} 12. dxe5 {[%emt 0:00:25]} Na5 {[%emt 0:01:56]} 13. Bc2 {[%emt 0:04:25]} Qxd1 {[%emt 0:06:51]} 14. Raxd1 {[%emt 0:02:06]} Bd7 {[%emt 0:00:23]} 15. Be4 {[%emt 0:03:53]} Rac8 {[%emt 0:03:09]} 16. a3 {[%emt 0:03:07]} Bc6 {[%emt 0:08:26]} 17. Bxc6 {[%emt 0:02:30]} Rxc6 {[%emt 0:00:23]} 18. Rd3 {[%emt 0:06:04]} Nac4 {[%emt 0:01:57]} 19. Bc1 {[%emt 0:00:23]} a6 {[%emt 0:00:53]} 20. Rfd1 {[%emt 0:06:48]} Rfc8 {[%emt 0:00:13]} 21. Nd4 {[%emt 0:08:13]} R6c7 {[%emt 0:00:27]} 22. f4 {[%emt 0:00:09]} Nxa3 {[%emt 0:07:11]} 23. bxa3 {[%emt 0:03:20]} Rxc3 {[%emt 0:00:10]} 24. Rxc3 {[%emt 0:03:01]} Rxc3 {[%emt 0:00:06]} 25. Ne2 {[%emt 0:01:20]} Rc4 {[%emt 0:01:48]} 26. Kf1 {[%emt 0:03:10]} g6 {[%emt 0:02:20]} 27. Rd4 {[%emt 0:03:45]} Rxd4 {[%emt 0:02:17]} 28. Nxd4 {[%emt 0:00:05]} Nc4 {[%emt 0:00:13]} 29. Nc2 {[%emt 0:00:44]} Kf8 {[%emt 0:00:41]} 30. Ke2 {[%emt 0:00:03]} Ke8 {[%emt 0:00:19]} 31. Kd3 {[%emt 0:00:08]} Nb6 {[%emt 0:00:24]} 32. Ne3 {[%emt 0:00:34]} Kd7 {[%emt 0:00:41]} 33. Nc4 {[%emt 0:03:09]} Nxc4 {[%emt 0:00:17]} 34. Kxc4 {[%emt 0:00:02]} b5+ {[%emt 0:00:24]} 35. Kb3 {[%emt 0:02:06]} Kc6 {[%emt 0:00:09]} 36. g4 {[%emt 0:00:19]} Kd5 {[%emt 0:00:11]} 37. Bd2 {[%emt 0:01:10]} h5 {[%emt 0:00:40]} 38. gxh5 {[%emt 0:01:12]} gxh5 {[%emt 0:00:07]} 39. h3 {[%emt 0:01:40]} Ke4 {[%emt 0:00:10]} 40. a4 {[%emt 0:00:20]} bxa4+ {[%emt 0:00:11]} 41. Kxa4 {[%emt 0:00:03]} Bc5 {[%emt 0:00:12]} 42. Ka5 {[%emt 0:00:51]} Be3 {[%emt 0:00:06]} 43. Bc3 {[%emt 0:00:29]} Bxf4 {[%emt 0:00:08]} 44. Kxa6 {[%emt 0:00:06]} Bxe5 {[%emt 0:00:06]} 45. Be1 {[%emt 0:00:20]} f5 {[%emt 0:00:14]} 0-1

[Event "LJ Slovak Open 2022"]
[Site "Liptovsky Jan"]
[Date "2022.06.24"]
[Round "2.3"]
[White "Karas, Marek"]
[Black "Janik, Marek Tobias"]
[Result "1-0"]
[ECO "A38"]
[WhiteElo "2292"]
[BlackElo "1840"]
[Annotator "RC"]
[PlyCount "39"]
[EventDate "2022.06.23"]
[EventType "swiss"]
[EventCountry "SVK"]
[SourceTitle "playchess.com"]
[Source "ChessBase"]
[SourceQuality "1"]
[TimeControl "3600+30"]

1. Nf3 {[%emt 0:00:08]} Nf6 {[%emt 0:00:26]} 2. g3 {[%emt 0:00:14]} g6 {[%emt 0:00:32]} 3. b3 {[%emt 0:00:34]} Bg7 {[%emt 0:00:40]} 4. Bb2 {[%emt 0:00:03]} c5 {[%emt 0:01:30]} 5. c4 {[%emt 0:00:20]} Nc6 {[%emt 0:00:06]} 6. Bg2 {[%emt 0:00:13]} d6 {[%emt 0:00:38]} 7. O-O {[%emt 0:00:18]} O-O {[%emt 0:01:22]} 8. Nc3 {[%emt 0:00:35]} h6 {[%emt 0:02:24]} 9. d4 {[%emt 0:02:05]} cxd4 {[%emt 0:02:27]} 10. Nxd4 {[%emt 0:00:09]} Bd7 {[%emt 0:00:08]} 11. Rc1 {[%emt 0:03:38]} Rc8 {[%emt 0:03:58]} 12. Qd2 {[%emt 0:02:28]} a6 {[%emt 0:02:46]} 13. Nf3 {[%emt 0:04:23]} Be6 {[%emt 0:10:28]} 14. Nd5 {[%emt 0:01:38]} Bxd5 {[%emt 0:04:41]} 15. cxd5 {[%emt 0:00:20]} Na7 {[%emt 0:00:44]} 16. Nd4 {[%emt 0:05:40]} Qd7 {[%emt 0:02:31]} 17. Rxc8 {[%emt 0:06:23]} Rxc8 {[%emt 0:02:06]} 18. Qe3 {[%emt 0:01:19]} Kf8 {[%emt 0:08:13]} 19. Ne6+ {[%emt 0:01:55]} fxe6 {[%emt 0:02:06]} 20. dxe6 {[%emt 0:00:19]} 1-0

[Event "LJ Slovak Open 2022"]
[Site "Liptovsky Jan"]
[Date "2022.06.24"]
[Round "2.4"]
[White "Rak, Martin"]
[Black "Zetocha, Adrian"]
[Result "0-1"]
[ECO "B77"]
[WhiteElo "1849"]
[BlackElo "2331"]
[Annotator "RC"]
[PlyCount "120"]
[EventDate "2022.06.23"]
[EventType "swiss"]
[EventCountry "SVK"]
[SourceTitle "playchess.com"]
[Source "ChessBase"]
[SourceQuality "1"]
[TimeControl "3600+30"]

1. e4 {[%emt 0:00:03]} c5 {[%emt 0:00:18]} 2. Nf3 {[%emt 0:00:04]} d6 {[%emt 0:00:22]} 3. d4 {[%emt 0:00:09]} cxd4 {[%emt 0:00:06]} 4. Nxd4 {[%emt 0:00:04]} Nf6 {[%emt 0:00:12]} 5. Nc3 {[%emt 0:00:07]} g6 {[%emt 0:00:10]} 6. Be3 {[%emt 0:00:36]} Bg7 {[%emt 0:00:59]} 7. f3 {[%emt 0:01:49]} O-O {[%emt 0:00:36]} 8. Bc4 {[%emt 0:01:40]} Nc6 {[%emt 0:00:42]} 9. Bb3 {[%emt 0:01:59]} Bd7 {[%emt 0:01:17]} 10. Qd2 {[%emt 0:01:39]} Nxd4 {[%emt 0:01:20]} 11. Bxd4 {[%emt 0:00:18]} b5 {[%emt 0:00:12]} 12. Nd5 {[%emt 0:03:55]} Nxd5 {[%emt 0:01:24]} 13. exd5 {[%emt 0:01:23]} a5 {[%emt 0:04:07]} 14. c3 {[%emt 0:09:04]} Qc7 {[%emt 0:11:08]} 15. O-O {[%emt 0:07:34]} a4 {[%emt 0:07:31]} 16. Bxg7 {[%emt 0:02:35]} Kxg7 {[%emt 0:00:14]} 17. Qd4+ {[%emt 0:04:46]} Kg8 {[%emt 0:10:44]} 18. Bc2 {[%emt 0:04:47]} a3 {[%emt 0:02:05]} 19. bxa3 {[%emt 0:02:54]} Rfc8 {[%emt 0:01:25]} 20. Rac1 {[%emt 0:03:23]} Qxc3 {[%emt 0:00:59]} 21. Qxc3 {[%emt 0:00:09]} Rxc3 {[%emt 0:00:05]} 22. Bb3 {[%emt 0:00:03]} Rc5 {[%emt 0:00:42]} 23. Rce1 {[%emt 0:04:10]} Kf8 {[%emt 0:00:45]} 24. Re3 {[%emt 0:00:54]} Bc8 {[%emt 0:04:04]} 25. Rfe1 {[%emt 0:01:27]} Rc7 {[%emt 0:00:19]} 26. Re4 {[%emt 0:03:09]} Rxa3 {[%emt 0:00:50]} 27. Rb4 {[%emt 0:03:13]} Rc5 {[%emt 0:01:58]} 28. Rh4 {[%emt 0:00:45]} h5 {[%emt 0:00:07]} 29. g4 {[%emt 0:00:16]} hxg4 {[%emt 0:03:02]} 30. fxg4 {[%emt 0:01:44]} Ra7 {[%emt 0:02:41]} 31. Rh8+ {[%emt 0:02:09]} Kg7 {[%emt 0:00:09]} 32. Re8 {[%emt 0:00:04]} Bxg4 {[%emt 0:00:09]} 33. R8xe7 {[%emt 0:00:09]} Rxe7 {[%emt 0:00:05]} 34. Rxe7 {[%emt 0:00:05]} Bf3 {[%emt 0:00:06]} 35. a4 {[%emt 0:02:21]} Bxd5 {[%emt 0:01:19]} 36. Bxd5 {[%emt 0:01:24]} Rxd5 {[%emt 0:00:02]} 37. a5 {[%emt 0:00:06]} b4 {[%emt 0:00:10]} 38. a6 {[%emt 0:00:06]} Ra5 {[%emt 0:00:13]} 39. a7 {[%emt 0:00:24]} b3 {[%emt 0:00:15]} 40. Rb7 {[%emt 0:00:22]} Kf6 {[%emt 0:00:25]} 41. Kf2 {[%emt 0:00:52]} b2 {[%emt 0:00:36]} 42. Rxb2 {[%emt 0:00:03]} Rxa7 {[%emt 0:00:06]} 43. Kf3 {[%emt 0:00:35]} Ke5 {[%emt 0:00:30]} 44. Re2+ {[%emt 0:00:20]} Kf5 {[%emt 0:00:23]} 45. Rd2 {[%emt 0:00:06]} Ra3+ {[%emt 0:00:18]} 46. Kf2 {[%emt 0:00:05]} Ke6 {[%emt 0:01:19]} 47. Re2+ {[%emt 0:00:08]} Kd7 {[%emt 0:00:23]} 48. Rd2 {[%emt 0:00:34]} f5 {[%emt 0:00:08]} 49. Rb2 {[%emt 0:00:10]} g5 {[%emt 0:00:37]} 50. Rd2 {[%emt 0:00:37]} g4 {[%emt 0:01:38]} 51. Rd4 {[%emt 0:01:20]} Ke6 {[%emt 0:00:20]} 52. Rd2 {[%emt 0:00:07]} Ke5 {[%emt 0:00:14]} 53. Re2+ {[%emt 0:00:08]} Kd4 {[%emt 0:00:07]} 54. Rd2+ {[%emt 0:00:16]} Rd3 {[%emt 0:00:08]} 55. Ra2 {[%emt 0:00:02]} d5 {[%emt 0:01:25]} 56. Ra4+ {[%emt 0:00:20]} Kc3 {[%emt 0:02:02]} 57. Rf4 {[%emt 0:00:52]} d4 {[%emt 0:00:14]} 58. Rxf5 {[%emt 0:00:07]} Rf3+ {[%emt 0:00:07]} 59. Rxf3+ {[%emt 0:00:17]} gxf3 {[%emt 0:00:01]} 60. Kxf3 {[%emt 0:00:44]} d3 {[%emt 0:00:13]} 0-1